bitfinex/quotes_SOLUSD_20260304
["timestamp","ask_amount","ask_price","bid_price","bid_amount"]
[1772609539182,5.52240056,86.33,86.291,2.94061581]
[1772609539873,5.52240056,86.32,86.293,2.94061581]
[1772609540073,5.52240056,86.31,86.286,11.58936328]
[1772609540265,0.80968353,86.319,86.286,14.72799383]
[1772609540981,0.80968353,86.319,86.287,3.13863055]
[1772609541156,0.80968353,86.319,86.286,11.58936328]
[1772609541157,5.52240056,86.32,86.29,8.66103111]
[1772609541355,5.52240056,86.32,86.291,3.13863055]
[1772609542269,0.83118166,86.319,86.286,28.97341399]
[1772609542676,0.83118166,86.319,86.286,32.11204454]
[1772609542869,0.83118166,86.319,86.287,3.13863055]
[1772609543073,0.83818372,86.318,86.287,3.13863055]
[1772609544867,5.52240056,86.31,86.281,11.5900372]
[1772609545064,5.52240056,86.33,86.291,3.13863055]
[1772609545278,5.52240056,86.34,86.301,3.13863055]
[1772609545459,5.52240056,86.33,86.301,3.13863055]
[1772609545776,5.52240056,86.32,86.292,3.13863055]
[1772609545963,6.3811116,86.32,86.282,3.13863055]
[1772609546167,5.52240056,86.32,86.282,3.13863055]
[1772609546664,5.52240056,86.34,86.301,3.13863055]
[1772609546864,102.5,86.349,86.311,3.13863055]
[1772609547071,12.44550922,86.355,86.321,3.13863055]
[1772609547260,102.5,86.372,86.331,3.13863055]
[1772609547261,11.57909218,86.363,86.331,3.13863055]
[1772609547456,5.52240056,86.36,86.331,3.13863055]
[1772609548257,5.52240056,86.35,86.321,3.13863055]
[1772609549468,11.58091002,86.349,86.321,3.13863055]
[1772609550679,0.89138117,86.348,86.312,3.13863055]
[1772609550864,40.53318508,86.349,86.286,3.69383402]
[1772609550865,5.52240056,86.35,86.32,8.66103111]
[1772609551071,11.58091002,86.349,86.32,8.66103111]
[1772609551377,11.58091002,86.349,86.32,3.13863055]
[1772609552662,0.9039299,86.348,86.311,3.13863055]
[1772609552868,0.9039299,86.348,86.312,3.13863055]
[1772609554677,5.52240056,86.35,86.314,3.13863055]
[1772609554678,12.49737029,86.347,86.314,3.13863055]
[1772609555984,0.92221766,86.344,86.314,3.13863055]
[1772609556469,5.52240056,86.34,86.314,3.13863055]
[1772609556859,5.52240056,86.34,86.312,3.13863055]
[1772609557065,11.58144652,86.345,86.312,3.13863055]
[1772609558370,5.52240056,86.34,86.312,3.13863055]
[1772609558886,12.52132899,86.345,86.314,3.13863055]
[1772609559380,12.52132899,86.345,86.32,5.52240056]
[1772609559381,0.93988247,86.345,86.32,5.52240056]
[1772609559685,11.58095035,86.349,86.321,3.13863055]
[1772609560280,102.5,86.374,86.321,3.13863055]
[1772609560281,5.52240056,86.36,86.321,3.13863055]
[1772609560471,0.95132344,86.366,86.34,8.65785078]
[1772609560674,0.95132344,86.366,86.334,11.58286891]
[1772609560971,5.51922023,86.36,86.335,3.13863055]
[1772609562468,11.579569,86.359,86.335,3.13863055]
[1772609562966,0.96250309,86.384,86.351,3.13863055]
[1772609563183,5.51922023,86.38,86.351,3.13863055]
[1772609563888,0.96799679,86.359,86.324,11.58422163]
[1772609564189,5.51922023,86.37,86.33,5.51922023]
[1772609565187,11.57822829,86.369,86.331,11.58332464]
[1772609565488,5.51922023,86.36,86.331,11.58332464]
[1772609565882,5.51922023,86.36,86.332,3.13863055]
[1772609566178,5.51922023,86.35,86.332,3.13863055]
[1772609567689,0.98934782,86.373,86.334,3.13863055]
[1772609567892,5.51922023,86.37,86.341,3.13863055]
[1772609568588,11.57702192,86.378,86.341,3.13863055]
[1772609568890,11.57702192,86.378,86.351,3.01434696]
[1772609570185,5.51922023,86.37,86.342,14.5960851]
[1772609570388,1.00973466,86.359,86.322,3.01434696]
[1772609570593,5.51922023,86.33,86.301,3.01434696]
[1772609570810,5.51922023,86.32,86.301,3.01434696]
[1772609571472,5.51922023,86.32,86.277,40.5670109]
[1772609571473,5.51922023,86.31,86.281,3.01434696]
[1772609571768,5.51922023,86.32,86.281,3.01434696]
[1772609572293,5.51922023,86.32,86.283,3.01434696]
[1772609573692,11.58493495,86.319,86.283,3.01434696]
[1772609574984,11.58493495,86.319,86.285,3.01434696]
[1772609575190,5.51922023,86.33,86.301,3.01434696]
[1772609576278,1.03392848,86.341,86.303,3.01434696]
[1772609576279,5.51922023,86.34,86.303,3.01434696]
[1772609576481,11.58225135,86.339,86.303,3.01434696]
[1772609578384,5.51922023,86.34,86.305,3.01434696]
[1772609578888,5.51922023,86.33,86.305,3.01434696]
[1772609579086,1.04778801,86.348,86.311,3.01434696]
[1772609579296,5.51922023,86.34,86.311,3.01434696]
[1772609580698,5.51922023,86.33,86.311,3.01434696]
[1772609581194,5.51922023,86.32,86.295,3.01434696]
[1772609582192,5.51922023,86.33,86.301,3.01434696]
[1772609582393,5.51922023,86.34,86.311,3.01434696]
[1772609582892,17.10140068,86.34,86.313,3.01434696]
[1772609584075,5.51922023,86.33,86.307,11.58642295]
[1772609584277,5.51922023,86.33,86.308,3.01434696]
[1772609585086,11.58359299,86.329,86.308,3.01434696]
[1772609585790,11.58359299,86.329,86.303,3.01434696]
[1772609586498,5.51922023,86.36,86.321,3.01434696]
[1772609587196,5.51922023,86.36,86.323,3.01434696]
[1772609587400,12.66205111,86.359,86.323,3.01434696]
[1772609588800,11.579569,86.359,86.331,3.01434696]
[1772609591782,11.579569,86.359,86.333,3.01434696]
[1772609593986,5.51922023,86.36,86.335,3.01434696]
[1772609594186,11.579569,86.359,86.335,3.01434696]
[1772609594692,5.51922023,86.34,86.302,3.01434696]
[1772609594891,5.51922023,86.33,86.302,3.01434696]
[1772609595092,5.51922023,86.33,86.302,14.60156394]
[1772609595290,5.51922023,86.33,86.303,3.01434696]
[1772609595885,5.51922023,86.33,86.304,11.58694846]
[1772609596089,5.51922023,86.33,86.305,3.01434696]
[1772609596885,5.51922023,86.33,86.299,11.58750589]
[1772609596886,1.12157502,86.328,86.299,11.58750589]
[1772609597185,1.12157502,86.328,86.299,3.01434696]
[1772609597186,5.51922023,86.32,86.299,3.01434696]
[1772609597391,1.12524163,86.319,86.293,11.58832143]
[1772609597586,5.51922023,86.31,86.293,11.58832143]
[1772609597791,5.51922023,86.31,86.29,3.01434696]
[1772609599005,5.51922023,86.31,86.274,28.97712635]
[1772609599006,5.51922023,86.31,86.283,11.58975872]
[1772609599318,5.51922023,86.3,86.281,3.27290509]
[1772609600005,5.51922023,86.29,86.274,3.27290509]
[1772609600301,1.1359907,86.302,86.274,3.27290509]
[1772609600616,1.14295254,86.279,86.247,3.23861714]
[1772609600812,5.51922023,86.29,86.261,3.23861714]
[1772609601007,11.58896267,86.289,86.261,3.23861714]
[1772609602211,11.58896267,86.289,86.262,3.23861714]
[1772609602411,5.51922023,86.3,86.271,3.23861714]
[1772609603113,5.51922023,86.3,86.236,3.69383402]
[1772609603114,5.51922023,86.28,86.244,11.59495045]
[1772609603307,5.51922023,86.28,86.251,3.23861714]
[1772609603817,5.51922023,86.26,86.24,0.2]
[1772609604119,1.15309831,86.269,86.24,3.43861714]
[1772609605313,5.51922023,86.26,86.24,3.43861714]
[1772609605893,5.51922023,86.26,86.24,0.2]
[1772609606914,5.51922023,86.25,86.23,0.2]
[1772609607225,11.59433732,86.249,86.23,0.2]
[1772609607626,12.55814293,86.266,86.231,3.23861714]
[1772609607799,5.51922023,86.26,86.231,3.23861714]
[1772609608299,5.51922023,86.26,86.232,3.23861714]
[1772609610317,0.97544805,86.299,86.251,3.23861714]
[1772609610509,5.51922023,86.29,86.261,3.23861714]
[1772609610816,0.97544805,86.298,86.261,3.23861714]
[1772609611002,5.51922023,86.29,86.261,3.23861714]
[1772609611208,5.51922023,86.28,86.261,3.23861714]
[1772609611414,5.51922023,86.28,86.251,3.23861714]
[1772609611612,0.97849588,86.279,86.251,3.23861714]
[1772609611809,5.51922023,86.27,86.241,3.23861714]
[1772609612512,5.51922023,86.29,86.251,3.23861714]
[1772609612718,5.51922023,86.28,86.251,3.23861714]
[1772609613316,0.98310128,86.28,86.251,3.23861714]
[1772609613514,5.51922023,86.27,86.251,3.23861714]
[1772609613717,6.50232151,86.28,86.251,3.23861714]
[1772609615017,5.51922023,86.27,86.251,3.23861714]
[1772609615317,0.98536438,86.312,86.261,3.23861714]
[1772609615501,5.51922023,86.31,86.271,3.23861714]
[1772609615702,6.50682172,86.31,86.271,3.23861714]
[1772609615908,6.50682172,86.31,86.281,3.23861714]
[1772609616326,0.9898129,86.309,86.281,3.23861714]
[1772609616532,5.51922023,86.3,86.281,3.23861714]
[1772609616699,5.51922023,86.3,86.271,3.23861714]
[1772609617217,28.96454784,86.313,86.281,3.23861714]
[1772609617521,5.51922023,86.31,86.281,3.23861714]
[1772609618805,11.58627721,86.309,86.281,3.23861714]
[1772609619411,11.58627721,86.309,86.282,3.23861714]
[1772609620619,28.95671089,86.336,86.301,3.23861714]
[1772609620925,28.95696994,86.335,86.301,3.23861714]
[1772609621328,5.52627253,86.33,86.301,3.23861714]
[1772609621627,0.9910252,86.329,86.301,3.23861714]
[1772609621832,5.52627253,86.32,86.291,3.23861714]
[1772609622824,11.58493495,86.319,86.291,3.23861714]
[1772609623534,40.54727232,86.319,86.291,3.23861714]
[1772609625015,5.52627253,86.31,86.281,3.23861714]
[1772609625411,6.48872128,86.31,86.281,3.23861714]
[1772609626127,0.96244875,86.309,86.281,3.23861714]
[1772609626339,5.52627253,86.3,86.271,3.23861714]
[1772609626525,0.96244875,86.309,86.271,3.23861714]
[1772609627114,3.03036874,86.289,86.235,40.58644016]
[1772609627336,11.58641145,86.308,86.27,1.85753992]
[1772609627717,3.03036874,86.307,86.27,1.85753992]
[1772609629021,11.58641145,86.308,86.27,1.85753992]
[1772609629223,11.58641145,86.308,86.273,3.09974352]
[1772609629427,14.94263528,86.308,86.273,3.09974352]
[1772609629630,3.35622383,86.307,86.273,3.09974352]
[1772609630239,1.85753992,86.3,86.273,3.09974352]
[1772609630532,11.58641145,86.308,86.273,3.09974352]
[1772609631123,1.85753992,86.3,86.273,3.09974352]
[1772609631430,11.58761978,86.299,86.273,3.09974352]
[1772609631939,11.58761978,86.299,86.275,3.09974352]
[1772609632317,11.58692315,86.305,86.275,3.09974352]
[1772609633434,11.58641145,86.308,86.277,3.09974352]
[1772609633734,11.58641145,86.308,86.281,3.09974352]
[1772609635139,3.35622383,86.307,86.281,3.09974352]
[1772609635437,3.35622383,86.305,86.276,11.59070888]
[1772609635740,3.35622383,86.305,86.274,3.09974352]
[1772609636139,3.35622383,86.305,86.276,3.09974352]
[1772609636919,14.94234104,86.311,86.281,3.09974352]
[1772609637126,3.35622383,86.309,86.281,3.09974352]
[1772609637931,3.35622383,86.307,86.281,3.09974352]
[1772609639527,3.35622383,86.307,86.275,11.59084323]
[1772609639728,3.35622383,86.307,86.275,3.09974352]
[1772609640845,3.35622383,86.305,86.275,3.09974352]
[1772609641525,11.58667995,86.306,86.275,3.09974352]
[1772609641727,57.89739469,86.36,86.301,3.09974352]
[1772609641927,3.35622383,86.344,86.311,3.09974352]
[1772609642849,3.35622383,86.339,86.311,3.09974352]
[1772609643034,43.8945731,86.338,86.311,3.09974352]
[1772609643344,3.35622383,86.337,86.311,3.09974352]
[1772609643733,3.35622383,86.329,86.3,1.85753992]
[1772609644043,3.35622383,86.329,86.29,1.85753992]
[1772609645745,3.35622383,86.327,86.293,3.09974352]
[1772609646731,11.58372718,86.328,86.301,3.09974352]
[1772609646948,11.58117826,86.347,86.311,3.09974352]
[1772609647149,3.35622383,86.359,86.331,3.09974352]
[1772609647451,3.35622383,86.372,86.343,3.09974352]
[1772609647631,3.35622383,86.359,86.326,3.09974352]
[1772609647950,3.35622383,86.349,86.314,3.09974352]
[1772609651148,105.81018809,86.367,86.314,3.09974352]
[1772609651337,11.57863047,86.366,86.341,3.09974352]
[1772609651539,7.39288915,86.367,86.351,3.09974352]
[1772609651745,11.5769659,86.379,86.36,1.85753992]
[1772609652057,3.35622383,86.398,86.37,1.85753992]
[1772609652259,0.1,86.4,86.371,2.77041845]
[1772609652559,3.35622383,86.418,86.38,4.52941521]
[1772609653136,3.35622383,86.409,86.37,4.52941521]
[1772609653332,3.35622383,86.399,86.362,2.67187529]
[1772609653542,1.85753992,86.4,86.343,2.67335373]
[1772609653543,3.35622383,86.379,86.343,2.67335373]
[1772609654149,1.85753992,86.4,86.351,2.67335373]
[1772609654150,3.35622383,86.389,86.351,2.67335373]
[1772609655166,3.35622383,86.369,86.333,2.67481215]
[1772609655368,3.35622383,86.368,86.334,14.25773428]
[1772609655570,3.35622383,86.368,86.335,2.6762568]
[1772609655866,3.35622383,86.378,86.351,2.6762568]
[1772609656255,3.35622383,86.378,86.341,2.6762568]
[1772609657263,11.57715595,86.377,86.341,2.6762568]
[1772609657447,3.35622383,86.376,86.341,2.6762568]
[1772609657643,5.51863268,86.37,86.341,2.6762568]
[1772609657855,3.35622383,86.369,86.341,2.6762568]
[1772609659762,3.01265324,86.359,86.33,5.51863268]
[1772609659960,3.01265324,86.367,86.331,2.68326101]
[1772609662563,3.14158672,86.359,86.321,2.68854847]
[1772609663664,11.57863047,86.366,86.341,2.68983299]
[1772609664845,3.14158672,86.369,86.331,2.6910943]
[1772609665164,3.14158672,86.369,86.33,5.51863268]
[1772609665566,3.14158672,86.359,86.329,2.69235131]
[1772609665767,3.14158672,86.359,86.327,11.5837904]
[1772609665948,3.14158672,86.359,86.328,2.69235131]
[1772609666153,40.52098407,86.375,86.34,5.51863268]
[1772609666154,5.51863268,86.37,86.34,5.51863268]
[1772609666353,3.14158672,86.369,86.34,5.51863268]
[1772609666767,3.14158672,86.369,86.34,8.21221782]
[1772609666969,11.57836235,86.368,86.341,2.69358514]
[1772609667567,5.51863268,86.38,86.35,5.51863268]
[1772609667768,3.14158672,86.379,86.351,2.69478345]
[1772609667971,28.93998646,86.386,86.351,2.69478345]
[1772609668271,28.93998646,86.386,86.341,11.58198306]
[1772609668272,28.93998646,86.386,86.361,2.69478345]
[1772609668667,11.57501186,86.393,86.371,2.69595863]
[1772609668871,11.57367221,86.403,86.38,5.51863268]
[1772609669383,11.57367221,86.403,86.35,5.51863268]
[1772609669384,11.57166331,86.418,86.391,2.69717088]
[1772609670769,3.14158672,86.417,86.391,2.69717088]
[1772609671172,3.14158672,86.409,86.372,2.69832269]
[1772609671369,3.14158672,86.409,86.373,2.69945853]
[1772609671986,3.14158672,86.409,86.38,5.51863268]
[1772609673579,11.57300249,86.408,86.38,5.51863268]
[1772609674162,11.57300249,86.408,86.373,11.5776921]
[1772609674163,10.72470774,86.454,86.401,2.70169936]
[1772609674360,7.58312102,86.454,86.421,2.70169936]
[1772609674563,11.56697858,86.453,86.431,2.70280392]
[1772609674785,11.56625477,86.459,86.431,2.70280392]
[1772609675088,11.56483826,86.469,86.441,2.70280392]
[1772609675485,3.14158672,86.489,86.441,2.70280392]
[1772609675690,3.14158672,86.484,86.451,2.70390183]
[1772609675872,3.14158672,86.479,86.441,2.70390183]
[1772609676582,3.14158672,86.479,86.441,14.27248618]
[1772609676786,3.14158672,86.479,86.442,2.70503015]
[1772609677778,3.14158672,86.469,86.432,2.70610444]
[1772609678182,3.14158672,86.459,86.423,2.70610444]
[1772609678572,3.14158672,86.459,86.43,5.51863268]
[1772609678984,3.14158672,86.468,86.441,2.70721543]
[1772609679869,3.14158672,86.466,86.431,2.70826325]
[1772609680680,3.14158672,86.459,86.431,2.70826325]
[1772609680880,3.14158672,86.449,86.42,5.51863268]
[1772609681592,3.14158672,86.449,86.414,2.70929915]
[1772609681782,3.14158672,86.449,86.42,5.51863268]
[1772609682275,3.14158672,86.465,86.431,2.71016974]
[1772609682677,3.14158672,86.465,86.421,11.57126161]
[1772609682678,11.56483826,86.469,86.441,2.71103326]
[1772609682994,11.56483826,86.469,86.45,5.50683385]
[1772609683500,11.56483826,86.469,86.441,2.71103326]
[1772609683670,3.14158672,86.468,86.441,2.71103326]
[1772609683872,3.14158672,86.466,86.44,5.50683385]
[1772609684071,3.14158672,86.466,86.43,5.50683385]
[1772609684798,3.14158672,86.459,86.42,17.078214]
[1772609685106,3.14158672,86.459,86.42,5.50683385]
[1772609685992,3.14158672,86.457,86.42,5.50683385]
[1772609687411,3.14158672,86.455,86.42,5.50683385]
[1772609687691,40.48302025,86.456,86.411,2.71525319]
[1772609687898,0.1,86.49,86.451,2.71525319]
[1772609688085,0.1,86.49,86.465,2.71525319]
[1772609688397,0.1,86.49,86.48,5.50683385]
[1772609688774,0.1,86.49,86.47,5.50683385]
[1772609688979,0.1,86.49,86.433,1.15696551]
[1772609688980,3.13934573,86.488,86.434,2.7169047]
[1772609689196,3.13934573,86.488,86.414,2.7169047]
[1772609689385,0.1,86.49,86.407,2.71767792]
[1772609689386,5.50683385,86.46,86.407,2.71767792]
[1772609689580,3.13934573,86.459,86.43,5.50683385]
[1772609690387,3.13934573,86.459,86.421,2.71767792]
[1772609690599,5.50683385,86.45,86.42,5.50683385]
[1772609690897,3.13934573,86.447,86.411,14.29091423]
[1772609691684,3.13934573,86.447,86.42,5.50683385]
[1772609692797,3.13934573,86.447,86.421,11.57126161]
[1772609693303,3.13934573,86.447,86.411,2.72005068]
[1772609693493,3.13934573,86.447,86.42,5.50683385]
[1772609694280,11.56791523,86.446,86.42,5.50683385]
[1772609694483,3.13934573,86.459,86.42,8.22846664]
[1772609694803,3.13934573,86.449,86.411,2.72163279]
[1772609695502,3.13934573,86.449,86.401,11.85826325]
[1772609695503,3.13934573,86.459,86.42,5.50683385]
[1772609695703,3.13934573,86.459,86.421,2.72234363]
[1772609695910,40.4783383,86.466,86.42,5.50683385]
[1772609695911,3.13934573,86.449,86.42,5.50683385]
[1772609696290,3.13934573,86.447,86.411,2.72234363]
[1772609696493,3.23934573,86.49,86.441,2.72310442]
[1772609696687,3.23934573,86.49,86.44,5.50683385]
[1772609696688,3.13934573,86.488,86.46,5.50683385]
[1772609697791,3.13934573,86.488,86.47,5.50683385]
[1772609697990,3.13934573,86.488,86.46,5.50683385]
[1772609699317,3.13934573,86.486,86.46,5.50683385]
[1772609700200,3.13934573,86.486,86.45,5.50683385]
[1772609700398,3.13934573,86.486,86.46,5.50683385]
[1772609701318,11.56216397,86.489,86.46,5.50683385]
[1772609701514,11.56216397,86.489,86.438,28.92232342]
[1772609701515,3.13934573,86.479,86.45,5.50683385]
[1772609702119,3.13934573,86.462,86.431,3.10511257]
[1772609702305,11.56216397,86.489,86.42,5.50683385]
[1772609702306,3.13934573,86.459,86.42,5.50683385]
[1772609702505,3.13934573,86.459,86.421,3.10511257]
[1772609702700,11.56216397,86.489,86.361,1.15793008]
[1772609702701,3.13934573,86.439,86.41,8.61194642]
[1772609703014,3.13934573,86.449,86.42,5.50683385]
[1772609703198,3.13934573,86.449,86.412,3.10511257]
[1772609703702,3.13934573,86.449,86.421,3.10511257]
[1772609705404,11.5676476,86.448,86.421,3.10511257]
[1772609705606,3.13934573,86.455,86.43,5.50683385]
[1772609705805,3.13934573,86.455,86.421,3.10511257]
[1772609706010,3.13934573,86.455,86.421,2.98810257]
[1772609706912,3.13934573,86.488,86.43,5.50683385]
[1772609707122,3.13934573,86.479,86.45,5.50683385]
[1772609707301,3.13934573,86.479,86.44,5.50683385]
[1772609708009,3.13934573,86.479,86.441,3.10511257]
[1772609708398,3.13934573,86.479,86.451,3.10511257]
[1772609708819,3.13934573,86.469,86.422,3.10511257]
[1772609709006,3.13934573,86.467,86.431,3.10511257]
[1772609709208,11.56523951,86.466,86.431,3.10511257]
[1772609709441,14.70458524,86.466,86.431,3.10511257]
[1772609709710,3.13934573,86.466,86.441,3.10511257]
[1772609709919,3.13934573,86.483,86.451,3.10511257]
[1772609710301,3.13934573,86.479,86.442,3.10511257]
[1772609710514,3.13934573,86.469,86.442,3.10511257]
[1772609711332,14.70298093,86.478,86.45,8.61194642]
[1772609711509,3.13934573,86.486,86.451,3.10511257]
[1772609711713,0.1,86.49,86.461,3.10511257]
[1772609712028,0.1,86.49,86.471,3.10511257]
[1772609712601,11.56216397,86.489,86.471,3.10511257]
[1772609712804,0.1,86.49,86.461,3.10511257]
[1772609713220,11.56216397,86.489,86.461,3.10511257]
[1772609713412,0.1,86.49,86.463,3.10511257]
[1772609713613,0.1,86.49,86.47,5.50683385]
[1772609714001,0.1,86.49,86.463,3.10511257]
[1772609718033,3.13934573,86.489,86.451,3.10511257]
[1772609719838,14.81677658,86.488,86.453,3.32961158]
[1772609720136,3.25447893,86.487,86.453,3.32961158]
[1772609721438,5.50683385,86.47,86.44,5.50683385]
[1772609721634,3.23914512,86.478,86.441,3.25298969]
[1772609722040,40.46897762,86.486,86.441,3.25298969]
[1772609722041,5.50683385,86.47,86.441,3.25298969]
[1772609722336,3.23914512,86.485,86.451,3.25298969]
[1772609722839,3.23914512,86.485,86.461,3.25298969]
[1772609724132,11.56283243,86.484,86.461,3.25298969]
[1772609724337,3.23914512,86.483,86.453,3.25298969]
[1772609724510,5.50683385,86.48,86.453,3.25298969]
[1772609724711,3.23914512,86.483,86.453,3.25298969]
[1772609726126,3.23914512,86.479,86.442,3.25298969]
[1772609726538,3.23914512,86.459,86.431,3.25298969]
[1772609726732,3.23914512,86.449,86.421,3.25298969]
[1772609728331,3.23914512,86.447,86.415,11.57196931]
[1772609728762,3.23914512,86.447,86.416,3.25298969]
[1772609729216,3.23914512,86.439,86.409,3.25298969]
[1772609730132,3.23914512,86.437,86.403,55.29298969]
[1772609730337,3.23914512,86.437,86.404,3.25298969]
[1772609730846,3.23914512,86.429,86.403,52.04]
[1772609731214,3.23914512,86.419,86.391,3.25298969]
[1772609732230,11.57166331,86.418,86.391,3.25298969]
[1772609733129,3.23914512,86.417,86.391,3.25298969]
[1772609733430,11.57166331,86.418,86.391,3.25298969]
[1772609735249,3.23914512,86.423,86.391,3.25298969]
[1772609735945,3.23914512,86.423,86.393,3.25298969]
[1772609737331,3.23914512,86.423,86.365,3.69383402]
[1772609737332,5.50683385,86.41,86.368,3.25298969]
[1772609737538,5.50683385,86.41,86.381,3.25298969]
[1772609737746,40.49894702,86.422,86.381,3.25298969]
[1772609737747,3.23914512,86.411,86.381,3.25298969]
[1772609738539,11.57273463,86.41,86.381,3.25298969]
[1772609738736,17.07956848,86.41,86.381,3.25298969]
[1772609739357,11.57273463,86.41,86.381,3.25298969]
[1772609739853,57.83929102,86.447,86.391,3.25298969]
[1772609739854,8.74597897,86.43,86.391,3.25298969]
[1772609740038,3.23914512,86.429,86.391,3.25298969]
[1772609740850,3.23914512,86.419,86.384,3.25298969]
[1772609741050,8.74597897,86.41,86.384,3.25298969]
[1772609741231,3.23914512,86.409,86.384,3.25298969]
[1772609741837,3.23914512,86.427,86.391,3.25298969]
[1772609742136,102.5,86.464,86.401,3.25298969]
[1772609742339,11.56363468,86.478,86.441,3.25298969]
[1772609742542,3.23914512,86.459,86.406,0.14216157]
[1772609742745,3.23914512,86.457,86.42,5.50683262]
[1772609744436,3.23914512,86.457,86.43,5.50683262]
[1772609744636,3.23914512,86.457,86.427,3.25298969]
[1772609745560,14.80572233,86.456,86.431,3.25298969]
[1772609745747,11.5638063,86.477,86.451,3.25298969]
[1772609746450,11.5638063,86.477,86.46,5.50683262]
[1772609746649,11.5638063,86.477,86.451,3.25298969]
[1772609746850,11.5638063,86.477,86.428,40.4961355]
[1772609746851,14.80226137,86.482,86.46,5.50683262]
[1772609747045,0.1,86.49,86.47,5.50683262]
[1772609747046,11.56244474,86.487,86.47,5.50683262]
[1772609747348,11.56244474,86.487,86.461,3.25298969]
[1772609747738,3.23914512,86.486,86.453,3.25298969]
[1772609747934,3.23914512,86.479,86.45,5.50683262]
[1772609749360,3.23914512,86.479,86.445,3.25298969]
[1772609749661,3.23914512,86.479,86.44,5.50683262]
[1772609749860,3.06662298,86.477,86.44,5.50683262]
[1772609750658,3.06662298,86.477,86.441,3.32970487]
[1772609751055,3.06662298,86.469,86.441,3.32970487]
[1772609752158,11.56497201,86.468,86.441,3.32970487]
[1772609752360,14.63159499,86.468,86.441,3.32970487]
[1772609753443,3.06662298,86.467,86.441,3.32970487]
[1772609754165,3.06662298,86.467,86.416,28.92981615]
[1772609754166,3.06662298,86.449,86.41,3.32970487]
[1772609754342,3.06662298,86.449,86.41,8.83653749]
[1772609754860,3.06662298,86.439,86.41,5.50683262]
[1772609755060,3.06662298,86.429,86.394,3.32970487]
[1772609755858,11.56523951,86.466,86.421,3.32970487]
[1772609756154,43.5435569,86.469,86.44,5.50683262]
[1772609756357,3.06662298,86.468,86.43,5.50683262]
[1772609757556,3.06662298,86.468,86.431,3.32970487]
[1772609757862,3.06662298,86.468,86.43,5.50683262]
[1772609758963,3.06662298,86.466,86.43,5.50683262]
[1772609759351,3.06662298,86.466,86.414,3.32970487]
[1772609759552,3.06662298,86.459,86.42,5.50683262]
[1772609759954,3.06662298,86.449,86.406,3.32970487]
[1772609760258,3.06662298,86.439,86.41,5.50683262]
[1772609761074,3.06662298,86.437,86.41,5.50683262]
[1772609761278,3.06662298,86.437,86.406,3.32970487]
[1772609761476,3.06662298,86.437,86.4,5.50683262]
[1772609761990,3.06662298,86.437,86.4,8.83653749]
[1772609762668,3.06662298,86.437,86.401,3.32970487]
[1772609762851,3.06662298,86.437,86.402,3.32970487]
[1772609763275,14.63587653,86.436,86.41,5.50683262]
[1772609763680,3.06662298,86.435,86.41,5.50683262]
[1772609764187,3.06662298,86.435,86.402,3.32970487]
[1772609764476,3.06662298,86.435,86.41,5.50683262]
[1772609765261,11.56952125,86.434,86.41,5.50683262]
[1772609765855,14.63614423,86.434,86.41,5.50683262]
[1772609766779,11.56791523,86.446,86.411,3.32970487]
[1772609766969,11.56791523,86.446,86.421,3.32970487]
[1772609768480,14.63453821,86.446,86.421,3.32970487]
[1772609768681,3.06662298,86.445,86.421,3.32970487]
[1772609769776,11.56818286,86.444,86.421,3.32970487]
[1772609769978,3.06662298,86.443,86.411,3.32970487]
[1772609770665,3.06662298,86.439,86.401,3.32970487]
[1772609771066,3.06662298,86.439,86.41,5.509599]
[1772609771573,3.06662298,86.455,86.43,5.509599]
[1772609771774,3.06662298,86.455,86.43,8.83930387]
[1772609771973,11.56684479,86.454,86.43,8.83930387]
[1772609772292,3.06662298,86.453,86.421,3.32970487]
[1772609772575,5.509599,86.45,86.421,3.32970487]
[1772609772778,3.06662298,86.449,86.411,3.32970487]
[1772609773356,3.06662298,86.439,86.398,3.61402801]
[1772609773557,3.06662298,86.439,86.401,3.32970487]
[1772609774177,3.06662298,86.437,86.401,3.32970487]
[1772609774767,3.06662298,86.437,86.41,5.509599]
[1772609774982,3.06662298,86.437,86.401,3.32970487]
[1772609775184,3.06662298,86.429,86.39,5.509599]
[1772609775377,3.06662298,86.419,86.39,5.509599]
[1772609776476,103.6814748,86.764,86.41,8.83930387]
[1772609776477,11.56992282,86.431,86.41,8.83930387]
[1772609776677,5.509599,86.44,86.411,3.32970487]
[1772609776876,3.06662298,86.441,86.421,3.32970487]
[1772609777080,11.56697858,86.453,86.422,3.32970487]
[1772609777289,11.56697858,86.453,86.431,3.32970487]
[1772609778371,40.48161555,86.459,86.431,3.32970487]
[1772609778585,40.48161555,86.459,86.421,3.34082892]
[1772609778886,40.48161555,86.459,86.422,3.34082892]
[1772609779888,3.14406373,86.458,86.422,3.34082892]
[1772609780277,11.56617587,86.459,86.431,3.1509432]
[1772609780472,3.27268706,86.468,86.432,3.1509432]
[1772609781888,40.47693392,86.469,86.44,5.509599]
[1772609782070,40.47693392,86.469,86.441,3.1509432]
[1772609782982,3.27268706,86.469,86.441,3.1509432]
[1772609785367,11.56497201,86.468,86.443,3.1509432]
[1772609785774,14.83765907,86.468,86.443,3.1509432]
[1772609785979,3.27268706,86.467,86.443,3.1509432]
[1772609786780,11.56497201,86.468,86.443,3.1509432]